[Event "German Bundesliga 2021-22"]
[Site "Germany"]
[Date "2022.04.10"]
[Round "4.9"]
[White "Nisipeanu, Liviu-Dieter"]
[Black "Fressinet, Laurent"]
[Result "1-0"]
[ECO "D53"]
[WhiteElo "2652"]
[BlackElo "2630"]
[Annotator "TA"]
[PlyCount "41"]
[EventDate "2022.03.05"]
[EventType "team-tourn"]
[EventCountry "GER"]
[SourceTitle "playchess.com"]
[Source "ChessBase"]
[SourceQuality "1"]
[TimeControl "40/5400+30:1800+30"]

{[%evp 10,41,16,13,21,17,16,16,20,23,25,0,8,7,39,-36,-19,-116,66,64,93,61,92,94,118,117,289,313,293,296,430,426,1031,998]} 1. d4 {[%emt 0:00:00]} Nf6 {[%emt 0:00:00]} 2. c4 {[%emt 0:00:00]} e6 {[%emt 0:00:00]} 3. Nc3 {[%emt 0:00:00]} d5 {[%emt 0:00:00]} 4. Bg5 {[%emt 0:00:00]} Be7 {[%emt 0:00:00]} 5. e3 {[%emt 0:00:00]} h6 {[%emt 0:00:00]} 6. Bh4 {[%emt 0:00:00]} dxc4 {[%emt 0:00:00] D53: Queen's Gambit Declined: 4 Bg5 Be7: Early deviations.} 7. Bxc4 {[%emt 0:00:00]} c5 {[%emt 0:00:00]} 8. Nf3 {[%emt 0:05:04]} cxd4 {[%emt 0:00:00] The position is equal.} 9. Nxd4 {[%emt 0:03:52]} Bd7 {[%emt 0:00:00] [#]} 10. Qe2 $5 $146 {[%emt 0:15:15][%mdl 8] New and interesting.} ({Predecessor:} 10. O-O O-O 11. Rc1 Nc6 12. Nb3 Rc8 13. Be2 Nd5 14. Bg3 Nxc3 15. Rxc3 Nb4 16. Rxc8 Qxc8 17. Bd6 Nd5 18. Bxe7 Nxe7 19. Qd6 {½-½ (28) Carlsen,M (2872)-Caruana,F (2822) Wijk aan Zee 2020}) 10... O-O {[%emt 0:10:49]} 11. Rd1 {[%emt 0:09:32]} Qc8 {[%emt 0:33:35]} 12. g4 {[%emt 0:18:13]} (12. Nf3 $14) 12... Nc6 {[%emt 0:09:26]} 13. g5 {[%emt 0:10:39]} (13. O-O $11) 13... Nxd4 $2 {[%emt 0:21:28]} ({Black should try} 13... Nh7 $1 $17 14. gxh6 Bxh4 15. hxg7 Rd8) 14. Rxd4 $14 {[%emt 0:00:36]} hxg5 {[%emt 0:00:03]} 15. Bxg5 {[%emt 0:00:16]} b5 {[%emt 0:00:11] [#] White must now prevent ...Qb7.} 16. Bb3 $1 {[%emt 0:06:51] aiming for Rh4.} (16. Nxb5 $6 Qc5 17. h4 (17. Bxf6 Bxf6 18. Rxd7 Qc6 $11) 17... Bxb5 18. Bxb5 Rad8 $11) (16. Bxb5 $6 Bxb5 17. Qxb5 Rb8 $15) 16... b4 {[%emt 0:04:22]} 17. Ne4 {[%emt 0:03:04] &Bianco is more active.} Nxe4 {[%emt 0:04:34] This costs Black the game.} (17... Qc1+ $16 18. Bd1 Nxe4 19. Bxe7 Rfe8) 18. Bxe7 $18 {[%emt 0:00:08]} Re8 {[%emt 0:04:21] [#]} 19. Bh4 {[%emt 0:00:25] A strong pair of Bishops.} ({Not} 19. Rxe4 Qc6 20. Qc4 Rxe7 $14) ({Weaker is} 19. Bxb4 Qc1+ 20. Bd1 Nf6 $16) 19... Bc6 {[%emt 0:07:02]} (19... Qc1+ $142 20. Rd1 Qc7) 20. Rg1 {[%emt 0:01:32] Strongly threatening Qg4.} e5 {[%emt 0:01:32] [#]} (20... Bd5 $142 21. Bc2 Qc6) 21. Qh5 $1 {[%emt 0:01:21] Weighted Error Value: White=0.23 (precise) /Black=0.55} 1-0

[Event "German Bundesliga 2021-22"]
[Site "Germany"]
[Date "2022.04.10"]
[Round "4.9"]
[White "Santos Latasa, Jaime"]
[Black "Harikrishna, Pentala"]
[Result "1/2-1/2"]
[ECO "C54"]
[WhiteElo "2640"]
[BlackElo "2719"]
[Annotator "TA"]
[PlyCount "114"]
[EventDate "2022.03.05"]
[EventType "team-tourn"]
[EventCountry "GER"]
[SourceTitle "playchess.com"]
[Source "ChessBase"]
[SourceQuality "1"]
[TimeControl "40/5400+30:1800+30"]

{[%evp 10,114,10,18,33,10,30,16,46,12,10,13,15,7,10,0,0,0,0,0,0,4,18,35,19,13,19,20,21,19,85,89,101,54,65,26,89,52,48,46,41,8,33,61,47,0,0,0,0,0,0,0,21,16,82,38,50,49,131,36,165,161,170,0,49,67,75,38,43,29,147,0,0,0,0,0,0,0,5,11,4,0,0,0,0,0,0,0,0,0,0,0,0,0,0,0,0,0,-28000,-28000,-28000,-28000,-28000,-28000,-28000,-28000,-28000]} 1. e4 {[%emt 0:00:00]} e5 {[%emt 0:00:00]} 2. Nf3 {[%emt 0:00:00]} Nc6 {[%emt 0:00:00]} 3. Bc4 {[%emt 0:00:00]} Nf6 {[%emt 0:00:00]} 4. d3 {[%emt 0:00:00]} Bc5 {[%emt 0:00:00]} 5. O-O {[%emt 0:00:00]} d6 {[%emt 0:00:00]} 6. c3 {[%emt 0:00:00]} a5 {[%emt 0:00:00] C54: Giuoco Piano: 4 c3 Nf6, main lines with 5 d4 and 5 d3.} 7. Re1 {[%emt 0:00:00]} (7. Bg5 $5 {[%cal Rd3d4]}) 7... Ba7 {[%emt 0:00:00]} 8. Na3 {[%emt 0:00:00]} O-O {[%emt 0:00:00] [#] The position is equal.} 9. Nb5 $146 {[%emt 0:00:22]} ({Predecessor:} 9. Bg5 h6 10. Bh4 g5 11. Bg3 Nh7 12. Nc2 h5 13. h4 Bg4 14. hxg5 Nxg5 15. Ne3 Bxe3 16. Rxe3 {0-1 (28) Volokitin,A (2606)-Rakotomaharo,F (2391) Riga 2021}) 9... Bb6 {[%emt 0:00:00]} 10. h3 {[%emt 0:00:50]} h6 {[%emt 0:01:27]} 11. Bb3 {[%emt 0:07:43]} Re8 {[%emt 0:05:40]} 12. Be3 {[%emt 0:05:43]} Bxe3 {[%emt 0:03:08]} 13. Rxe3 {[%emt 0:00:36]} Bd7 {[%emt 0:06:10]} 14. a4 {[%emt 0:04:54]} Ne7 {[%emt 0:01:47]} 15. Nh4 {[%emt 0:07:53]} d5 {[%emt 0:12:04]} 16. Nf3 {[%emt 0:02:46]} Ng6 {[%emt 0:00:34]} 17. exd5 {[%emt 0:00:46]} Bxb5 {[%emt 0:00:13]} 18. axb5 {[%emt 0:00:04]} Nxd5 {[%emt 0:00:11]} 19. Re4 {[%emt 0:02:54]} f5 {[%emt 0:07:36]} (19... Nf6 $11 {keeps the balance.}) 20. Re1 {[%emt 0:00:28][%cal Oh3h4] &Bianco is more active.} c6 {[%emt 0:02:47]} 21. bxc6 {[%emt 0:02:48]} (21. g3 $16) 21... bxc6 $14 {[%emt 0:00:08]} 22. g3 {[%emt 0:03:41]} (22. Nd2 {keeps more tension.} Ngf4 23. Nc4 Qg5 24. Qf3) 22... Qf6 {[%emt 0:10:05]} (22... Rb8 $11) 23. h4 {[%emt 0:05:20]} Kh8 {[%emt 0:02:34]} 24. h5 {[%emt 0:02:49]} (24. Nd2 {is interesting.} Nxh4 25. Bxd5 cxd5 26. gxh4 Qxh4 27. Nf3) 24... Nf8 {[%emt 0:05:09]} 25. Nh4 {[%emt 0:10:31]} g5 {[%emt 0:03:03]} 26. hxg6 {[%emt 0:00:49]} Nxg6 {[%emt 0:00:09]} 27. Ra4 {[%emt 0:01:16]} (27. Bxd5 $14 cxd5 28. Ra4) 27... f4 $1 $11 {[%emt 0:04:46]} 28. Qh5 {[%emt 0:02:17][%csl LRg6,LRh6]} Nxh4 {[%emt 0:00:18]} 29. Qxh4 {[%emt 0:01:26]} Qxh4 {[%emt 0:03:25]} 30. gxh4 {[%emt 0:00:08]} Nf6 {[%emt 0:02:44]} 31. Bc4 {[%emt 0:03:20]} Ra7 {[%emt 0:03:02]} (31... f3 $11 {remains equal.}) 32. Kf1 {[%emt 0:08:41]} e4 $1 {[%emt 0:04:24]} 33. b4 $1 {[%emt 0:10:05]} e3 {[%emt 0:05:44]} ({Better is} 33... Rg7 $14) 34. fxe3 {[%emt 0:05:15]} (34. bxa5 $6 Ng4 $11) (34. Rxa5 $16 Rg7 35. fxe3) 34... fxe3 {[%emt 0:06:54]} (34... Ng4 $1 $14) 35. Rxa5 {[%emt 0:00:48]} Rg7 {[%emt 0:05:54]} 36. Ra2 $2 {[%emt 0:09:49]} (36. Ke2 $18) 36... Nd5 {[%emt 0:04:50]} (36... Nh5 $1 $11) 37. Bxd5 $14 {[%emt 0:00:44]} cxd5 {[%emt 0:00:25][%mdl 4096] Endgame KRR-KRR} 38. Rg2 {[%emt 0:00:25] Strongly threatening Rxg7.} Rc7 {[%emt 0:01:22]} 39. Rc1 {[%emt 0:01:46]} Ra8 {[%emt 0:02:11] [#]} (39... Rf8+ $1 $11 40. Ke2 d4) 40. Rcc2 {[%emt 0:02:06]} ({White should play} 40. d4 $1 $16) 40... d4 $11 {[%emt 0:00:54]} 41. Ke2 {[%emt 0:30:49]} Ra1 {[%emt 0:00:00]} 42. Kf3 {[%emt 0:00:00]} Rf1+ {[%emt 0:00:00]} 43. Ke4 {[%emt 0:00:00]} e2 {[%emt 0:00:00]} 44. Rgxe2 {[%emt 0:00:00]} ({But not} 44. Rcxe2 dxc3 45. Rc2 Rb1 $16) 44... dxc3 {[%emt 0:00:00]} 45. Kd4 {[%emt 0:00:00]} Rb1 {[%emt 0:00:00]} 46. Rxc3 {[%emt 0:00:00]} Rd7+ {[%emt 0:00:00]} 47. Ke3 {[%emt 0:00:00] Threatens to win with Rc4.} Re7+ {[%emt 0:00:00]} 48. Kf2 {[%emt 0:00:00]} Rf7+ {[%emt 0:00:00]} 49. Kg2 {[%emt 0:00:00]} Rg7+ {[%emt 0:01:16]} 50. Kh2 {[%emt 0:00:00]} Rxb4 {[%emt 0:00:13][%cal Rb4h4] [#]} 51. Rc4 {[%emt 0:00:00]} Rxc4 {[%emt 0:02:59]} 52. dxc4 {[%emt 0:00:00] KR-KR} Rg4 {[%emt 0:00:03][%csl LRc4,LRh4]} 53. Rc2 $2 {[%emt 0:00:00][%mdl 8192]} (53. c5 $11 Rxh4+ 54. Kg2) 53... Rxh4+ {[%emt 0:00:05]} 54. Kg3 {[%emt 0:00:00] Mate.} Rd4 {[%emt 0:00:05]} 55. c5 {[%emt 0:00:00]} Kg7 {[%emt 0:00:07]} 56. c6 {[%emt 0:00:00]} Rd8 {[%emt 0:00:05]} 57. Kf4 {[%emt 0:00:00]} Kf6 {[%emt 0:00:06][%mdl 32768] Quite a comeback for Black.  Weighted Error Value: White=0.19 (very precise) /Black=0.17 (very precise) . An unexpected result.} 1/2-1/2

[Event "German Bundesliga 2021-22"]
[Site "Germany"]
[Date "2022.04.10"]
[Round "4.9"]
[White "Haria, Ravi"]
[Black "Vachier-Lagrave, Maxime"]
[Result "1/2-1/2"]
[ECO "B52"]
[WhiteElo "2490"]
[BlackElo "2761"]
[Annotator "TA"]
[PlyCount "44"]
[EventDate "2022.03.05"]
[EventType "team-tourn"]
[EventCountry "GER"]
[SourceTitle "playchess.com"]
[Source "ChessBase"]
[SourceQuality "1"]
[TimeControl "40/5400+30:1800+30"]

{[%evp 16,44,9,10,33,43,35,46,40,42,47,58,43,44,87,0,0,0,9,16,15,22,18,2,10,14,30,30,41,23,49]} 1. e4 {[%emt 0:00:00]} c5 {[%emt 0:00:00]} 2. Nf3 {[%emt 0:00:00]} d6 {[%emt 0:00:00]} 3. Bb5+ {[%emt 0:00:00]} Bd7 {[%emt 0:00:00]} 4. Bxd7+ {[%emt 0:00:00]} Qxd7 {[%emt 0:00:00]} 5. O-O {[%emt 0:00:00]} Nc6 {[%emt 0:00:00]} 6. c3 {[%emt 0:00:00]} d5 {[%emt 0:00:00]} 7. exd5 {[%emt 0:00:00]} Qxd5 {[%emt 0:00:00]} 8. d4 {[%emt 0:00:00]} e6 {[%emt 0:00:00]} 9. Be3 {[%emt 0:17:05]} Nf6 {[%emt 0:03:13] B52: Sicilian: Moscow Variation with 3...Bd7.} 10. dxc5 {[%emt 0:14:44]} O-O-O {[%emt 0:00:10]} 11. Qxd5 {[%emt 0:11:30]} Nxd5 {[%emt 0:00:13] White is slightly better.} 12. b4 {[%emt 0:02:21]} Be7 {[%emt 0:01:42] [#]} 13. a3 $146 {[%emt 0:02:09]} ({Predecessor:} 13. a4 Rhe8 14. a5 Bf6 15. Ra3 Nc7 16. g4 h6 17. Rc1 Nb5 18. Rb3 e5 19. Nfd2 {½-½ (46) Schatz,D (1927)-Jarecki,M (1840) GER email 2011}) 13... Bf6 {[%emt 0:04:39]} 14. Ra2 {[%emt 0:03:12]} Rd7 {[%emt 0:05:05]} ({Don't play} 14... Nxc3 15. Nxc3 Bxc3 16. Ng5 $16) 15. Nd4 {[%emt 0:08:34]} ({White should play} 15. Rc2 $16) 15... Nxc3 $11 {[%emt 0:07:53]} 16. Nxc3 {[%emt 0:01:09][%cal Bb1c3,Bc3e4,Be4d6][%mdl 32]} Bxd4 {[%emt 0:00:34]} 17. Ne4 {[%emt 0:03:46] [#] Black must now prevent b5.} Bxe3 {[%emt 0:00:18]} 18. fxe3 {[%emt 0:00:15]} Ne5 {[%emt 0:00:11]} 19. Kf2 {[%emt 0:02:36]} f6 {[%emt 0:17:37]} 20. Ke2 {[%emt 0:03:23]} Rhd8 {[%emt 0:00:07]} 21. Nd6+ {[%emt 0:03:46]} Kb8 {[%emt 0:00:14]} 22. Rc2 {[%emt 0:02:12]} b6 {[%emt 0:09:22] Weighted Error Value: White=0.10 (very precise) /Black=0.08 (flawless)} 1/2-1/2

[Event "German Bundesliga 2021-22"]
[Site "Germany"]
[Date "2022.04.10"]
[Round "4.10"]
[White "Van Foreest, Jorden"]
[Black "Santos Ruiz, Miguel"]
[Result "1/2-1/2"]
[ECO "C50"]
[WhiteElo "2702"]
[BlackElo "2596"]
[Annotator "TA"]
[PlyCount "68"]
[EventDate "2022.03.05"]
[EventType "team-tourn"]
[EventCountry "GER"]
[SourceTitle "playchess.com"]
[Source "ChessBase"]
[SourceQuality "1"]
[TimeControl "40/5400+30:1800+30"]

{[%evp 11,68,11,15,6,9,0,0,0,6,9,10,9,11,0,14,0,40,0,0,0,0,0,0,0,0,-12,-12,-16,-11,-13,-5,-8,-6,-10,-18,-21,0,0,0,0,0,0,0,0,0,0,0,0,0,0,0,0,0,-17,-17,-17,-19,-23,-25]} 1. e4 {[%emt 0:00:00]} e5 {[%emt 0:00:00]} 2. Nf3 {[%emt 0:00:00]} Nc6 {[%emt 0:00:00]} 3. Bc4 {[%emt 0:00:00]} Nf6 {[%emt 0:00:00]} 4. d3 {[%emt 0:00:00]} Bc5 {[%emt 0:00:00]} 5. Nc3 {[%emt 0:00:00]} h6 {[%emt 0:00:00]} 6. a3 {[%emt 0:00:00]} a6 {[%emt 0:00:00]} 7. Be3 {[%emt 0:00:00] C50: Hungarian Defence and Giuoco Pianissimo.} d6 {[%emt 0:00:00]} 8. Nd5 {[%emt 0:00:00] 8.Nd5 is the recent fashion.} Nxd5 {[%emt 0:06:41] [#]} 9. Bxd5 $146 {[%emt 0:00:00] next Bxc5 is good for White. The position is equal.} ({Predecessor:} 9. exd5 Nd4 10. Bxd4 Bxd4 11. c3 Bb6 12. Qe2 O-O 13. O-O-O Bg4 14. h3 Bxf3 15. Qxf3 {0-1 (47) Garcia Andres,D (2046)-Solano Lasierra,J (2103) Spain 2004}) 9... Bxe3 {[%emt 0:00:39]} 10. fxe3 {[%emt 0:00:00]} Be6 {[%emt 0:08:32]} 11. Bxe6 {[%emt 0:00:00]} fxe6 {[%emt 0:00:42]} 12. Qe2 {[%emt 0:00:00]} Qe7 {[%emt 0:05:02]} 13. O-O-O {[%emt 0:02:54]} d5 {[%emt 0:03:51]} 14. d4 {[%emt 0:12:43]} O-O-O {[%emt 0:08:12]} 15. Qd3 {[%emt 0:04:38]} Qf6 {[%emt 0:00:26]} 16. Rhf1 {[%emt 0:09:08]} exd4 {[%emt 0:19:30]} 17. Nxd4 {[%emt 0:01:53]} Ne5 {[%emt 0:00:08]} 18. Qb3 {[%emt 0:12:08]} Qg6 {[%emt 0:01:24]} 19. exd5 {[%emt 0:00:07]} exd5 {[%emt 0:04:13]} 20. Nf5 {[%emt 0:03:02] [#] And now Ne7+ would win.} Rhe8 {[%emt 0:04:41] Against Ne7+} ({Don't take} 20... Qxg2 21. Ne7+ Kb8 22. Rf5 $16) 21. g3 $1 {[%emt 0:07:39]} Nc4 {[%emt 0:05:00]} 22. Qc3 {[%emt 0:02:14]} Rd7 {[%emt 0:00:59][%cal Bd8d7,Bd7g7,Bg7g4,Bg4g6,Bg6f6][%mdl 32]} 23. Rf4 {[%emt 0:05:38]} Re5 {[%emt 0:07:57]} 24. g4 {[%emt 0:06:32] [#] Strongly threatening Rxc4.} Qe6 {[%emt 0:03:42]} 25. Nxg7 {[%emt 0:12:08]} Rxg7 {[%emt 0:00:04]} 26. Rf8+ {[%emt 0:00:04]} Kd7 {[%emt 0:00:03]} 27. Qxc4 {[%emt 0:00:03] Rh8 is the strong threat.} Rxg4 {[%emt 0:00:20]} 28. Qf1 {[%emt 0:04:56]} Rg6 {[%emt 0:07:48] Prevents Rf6.} 29. Qf4 {[%emt 0:01:44]} Re4 {[%emt 0:01:20]} 30. Qf2 {[%emt 0:07:57]} Kc6 {[%emt 0:02:23]} 31. h4 {[%emt 0:01:57] aiming for h5.} h5 {[%emt 0:01:09]} 32. Rd8 {[%emt 0:01:33]} Qf6 {[%emt 0:01:37]} 33. Qxf6+ {[%emt 0:00:05]} Rxf6 {[%emt 0:00:03]} 34. R8xd5 {[%emt 0:00:19]} Rxh4 {[%emt 0:00:09] An even fight not without its subleties.  Weighted Error Value: White=0.05 (flawless) /Black=0.02 (flawless)} 1/2-1/2

[Event "German Bundesliga 2021-22"]
[Site "Germany"]
[Date "2022.04.10"]
[Round "4.10"]
[White "Adams, Michael"]
[Black "Levin, Felix"]
[Result "1/2-1/2"]
[ECO "C54"]
[WhiteElo "2698"]
[BlackElo "2456"]
[Annotator "TA"]
[PlyCount "84"]
[EventDate "2022.03.05"]
[EventType "team-tourn"]
[EventCountry "GER"]
[SourceTitle "playchess.com"]
[Source "ChessBase"]
[SourceQuality "1"]
[TimeControl "40/5400+30:1800+30"]

{[%evp 9,84,13,12,4,8,9,7,11,11,0,21,0,2,0,12,8,8,16,17,43,22,8,10,23,41,33,37,28,64,10,18,0,0,0,16,15,23,26,19,15,27,22,21,17,17,-62,-51,-65,-42,-65,-71,-65,-65,-68,-61,-69,-69,-62,-69,-65,-67,-152,-168,-178,-155,-214,-230,-204,-147,-156,-29,-31,-5,-16,-14,-14,-17]} 1. e4 {[%emt 0:00:00]} e5 {[%emt 0:00:00]} 2. Nf3 {[%emt 0:00:00]} Nc6 {[%emt 0:00:00]} 3. Bc4 {[%emt 0:00:00]} Bc5 {[%emt 0:00:00]} 4. c3 {[%emt 0:00:00]} Nf6 {[%emt 0:00:00]} 5. d3 {[%emt 0:00:00]} d6 {[%emt 0:00:00]} 6. a4 {[%emt 0:00:00] Threatens to win with b4. C54: Giuoco Piano: 4 c3 Nf6, main lines with 5 d4 and 5 d3.} a5 {[%emt 0:00:00] Prevents b4.} 7. O-O {[%emt 0:00:00] 7.Bg5 gains popularity.} h6 {[%emt 0:00:00]} 8. Re1 {[%emt 0:00:00]} O-O {[%emt 0:00:00]} 9. Nbd2 {[%emt 0:00:00]} Bb6 {[%emt 0:00:00]} 10. Nf1 {[%emt 0:03:09]} Ne7 {[%emt 0:00:04]} 11. Ng3 {[%emt 0:04:37]} Ng6 {[%emt 0:01:36]} 12. Bb3 {[%emt 0:00:06]} c6 {[%emt 0:06:00]} 13. h3 {[%emt 0:04:34]} d5 {[%emt 0:29:18]} 14. exd5 {[%emt 0:00:54]} Nxd5 {[%emt 0:00:06]} 15. d4 {[%emt 0:00:24]} exd4 {[%emt 0:01:19]} 16. Nxd4 {[%emt 0:00:05] [#]} Bd7 $146 {[%emt 0:14:43]} (16... Qd6 {seems wilder.} 17. Bd2 Ndf4 18. Be3 Bxd4 19. Ne4 Qd8) ({Predecessor:} 16... Re8 17. Rxe8+ Qxe8 18. Bxd5 cxd5 19. Be3 Bc7 20. Qd2 Bd7 21. b3 Bxg3 22. fxg3 Qe5 {½-½ (32) Vidit,S (2727)-Esipenko,A (2714) Wijk aan Zee 2022}) 17. Bxd5 {[%emt 0:06:28]} cxd5 {[%emt 0:00:07]} 18. Be3 {[%emt 0:00:27]} Bc7 {[%emt 0:07:20]} 19. Ndf5 {[%emt 0:09:15] &Bianco is more active. Pair of Knights!} (19. Qf3 $14) 19... Re8 $11 {[%emt 0:17:45]} 20. Bd4 {[%emt 0:12:04] [#] And now Rxe8+ would win.} Rxe1+ {[%emt 0:02:01]} 21. Qxe1 {[%emt 0:00:02]} Bxg3 {[%emt 0:00:24]} 22. Nxg3 {[%emt 0:00:05]} Qg5 {[%emt 0:00:23]} 23. Be3 {[%emt 0:05:23]} Qe5 {[%emt 0:04:06]} 24. Qd2 {[%emt 0:14:29]} Bc6 {[%emt 0:02:14]} 25. b3 {[%emt 0:03:58]} Nh4 {[%emt 0:05:54][%cal Oh4g2]} 26. Bd4 {[%emt 0:05:19]} Qg5 {[%emt 0:00:16]} 27. Qd3 {[%emt 0:01:20]} (27. Ra2 $11) 27... f5 $1 $15 {[%emt 0:04:03] Strongly threatening ...f4.} 28. f4 $1 {[%emt 0:11:33]} Qxf4 {[%emt 0:01:38]} 29. Nh5 {[%emt 0:07:15][%csl LRf4,LRg7]} Qg5 $40 {[%emt 0:00:31][%csl Gh4,LRg2,LRh5][%cal Rg5g2][%mdl 128] [#] White is in trouble.} 30. Qg3 {[%emt 0:00:02]} Qxg3 {[%emt 0:01:05]} 31. Nxg3 {[%emt 0:00:01]} g5 {[%emt 0:02:09]} 32. Ne2 {[%emt 0:08:24]} f4 {[%emt 0:00:15]} 33. Bf2 {[%emt 0:01:26]} Nf5 {[%emt 0:00:39]} 34. Nd4 {[%emt 0:00:03]} Nd6 {[%emt 0:00:30]} 35. Nxc6 {[%emt 0:02:16]} (35. Re1 $15) 35... bxc6 {[%emt 0:00:06][%mdl 4096] Endgame KRB-KRN} 36. b4 {[%emt 0:00:20]} Kf7 {[%emt 0:01:41]} 37. Bd4 {[%emt 0:02:06]} (37. Bb6 $17 {keeps fighting.}) 37... Ke6 $19 {[%emt 0:01:43]} 38. Bb6 {[%emt 0:01:29]} axb4 {[%emt 0:00:24]} 39. cxb4 {[%emt 0:00:04]} Ne4 {[%emt 0:00:42]} (39... Nc4 $17 40. Bd4 Kf5) 40. a5 $11 {[%emt 0:00:28]} Ra6 {[%emt 0:00:21]} 41. Rc1 {[%emt 0:31:52]} Kd7 {[%emt 0:30:22]} 42. Kf1 {[%emt 0:00:36]} Ra8 {Weighted Error Value: White=0.15 (very precise) /Black=0.12 (very precise)} 1/2-1/2

[Event "German Bundesliga 2021-22"]
[Site "Germany"]
[Date "2022.04.10"]
[Round "4.10"]
[White "Areshchenko, Alexander"]
[Black "Bartel, Mateusz"]
[Result "1-0"]
[ECO "B12"]
[WhiteElo "2670"]
[BlackElo "2616"]
[Annotator "TA"]
[PlyCount "65"]
[EventDate "2022.03.05"]
[EventType "team-tourn"]
[EventCountry "GER"]
[SourceTitle "playchess.com"]
[Source "ChessBase"]
[SourceQuality "1"]
[TimeControl "40/5400+30:1800+30"]

{[%evp 9,65,18,10,19,0,8,26,22,33,8,13,0,0,10,0,0,0,3,14,0,24,22,38,16,62,66,116,108,160,167,150,78,131,124,102,102,364,360,414,412,391,313,397,396,377,357,357,366,360,357,419,423,480,486,998,974,6606,2136]} 1. e4 {[%emt 0:00:00]} c6 {[%emt 0:00:00]} 2. d4 {[%emt 0:00:00]} d5 {[%emt 0:00:00]} 3. e5 {[%emt 0:00:00]} c5 {[%emt 0:00:00]} 4. Nf3 {[%emt 0:00:00]} cxd4 {[%emt 0:00:00]} 5. Nxd4 {[%emt 0:00:00]} Nc6 {[%emt 0:00:00]} 6. Nxc6 {[%emt 0:00:00] B12: Caro-Kann: Advance Variation.} bxc6 {[%emt 0:00:00]} 7. Bd3 {[%emt 0:00:00]} Qc7 {[%emt 0:00:00]} 8. Qe2 {[%emt 0:03:07] White has an edge.} e6 {[%emt 0:00:00]} 9. Nd2 {[%emt 0:00:42]} Ne7 {[%emt 0:17:37]} 10. Nf3 {[%emt 0:02:40] [#]} c5 $146 {[%emt 0:00:19] Strongly threatening ...c4.} ({Predecessor:} 10... Ng6 11. h4 f6 12. exf6 gxf6 13. Nd4 Kf7 14. O-O c5 15. Qh5 Kg8 16. Nb5 Qf7 {1-0 (34) Raja,H (2472)-Ravi,T (2470) Ahmedabad 2020}) 11. c3 {[%emt 0:10:29]} Nc6 {[%emt 0:00:56]} 12. O-O {[%emt 0:00:51]} Be7 {[%emt 0:00:50]} 13. Re1 {[%emt 0:10:52]} h6 {[%emt 0:05:16]} 14. h4 {[%emt 0:07:17][%cal Bh2h4,Bh4h5][%mdl 32]} Rb8 {[%emt 0:02:32]} 15. h5 {[%emt 0:01:11]} Qa5 {[%emt 0:06:11]} 16. Nh2 {[%emt 0:10:32]} Kd7 {[%emt 0:09:53]} (16... Kf8 $11 {is superior.}) 17. Qg4 $14 {[%emt 0:03:55]} Bb7 {[%emt 0:01:27]} (17... Ba6 $14 18. Bxa6 Qxa6) 18. Nf3 $16 {[%emt 0:05:09]} g5 {[%emt 0:07:18]} (18... c4 19. Bc2 $14) (18... Ba6 $142 19. Rd1 (19. Bxa6 Qxa6 20. Rd1 Kc7 $11) 19... Bxd3 20. Rxd3 Kc7) 19. hxg6 {[%emt 0:01:48]} fxg6 {[%emt 0:00:07]} 20. Bxg6 {[%emt 0:02:22]} (20. b4 $142 Qa4 21. Be3 (21. Bxg6 Rbg8 $11)) 20... h5 {[%emt 0:06:18]} ({Black should play} 20... Rbg8) 21. Qh3 {[%emt 0:01:15] &Bianco is more active.} Qa4 {[%emt 0:00:28]} 22. b4 {[%emt 0:05:17][%cal Bb2b4,Bb4c5][%mdl 32] Threatens to win with Bg5.} Rbg8 $2 {[%emt 0:06:21][%mdl 8192] This costs Black the game.} (22... Rbf8 $16 {was necessary.}) 23. Bf7 $18 {[%emt 0:01:43]} (23. Bxh5 $2 Qc2 24. Be3 Qh7 25. Bxc5 (25. b5 $2 Na5 $19) 25... Bxc5 26. bxc5 Qxh5 27. Qxh5 Rxh5 $19) 23... Nd8 {[%emt 0:00:09]} 24. Bxg8 {[%emt 0:00:52] The board is on fire.} Rxg8 {[%emt 0:00:03]} 25. bxc5 {[%emt 0:06:11]} d4 {[%emt 0:00:03]} 26. cxd4 {[%emt 0:02:54]} Rg4 {[%emt 0:00:02]} 27. Rb1 {[%emt 0:09:52][%cal Ob1b7,Ba1b1,Bb1b3,Bb3b8][%mdl 32] Hoping for Rxb7+!} Bd5 {[%emt 0:00:31] [#]} 28. Rb3 $1 {[%emt 0:01:17]} Nc6 {[%emt 0:02:10] [#]} 29. Be3 $1 {[%emt 0:10:23]} Kc7 {[%emt 0:10:55]} (29... Kc8 30. Rb2) 30. Reb1 {[%emt 0:00:45]} Na5 {[%emt 0:00:24] Against Rb7+. White is clearly winning.} 31. Rb8 {[%emt 0:02:05][%cal Oe3g5] aiming for Bg5!} Qc2 {[%emt 0:00:08] [#]} (31... Be4 $142 32. a3 (32. Qxh5 $2 Bxf3 33. Qh2 Rxg2+ 34. Qxg2 Bxg2 $19) 32... Bxb1 33. Rxb1 Qc6) 32. Qxh5 $1 {[%emt 0:01:20][%cal Oh5e8] Qe8! would kill now.} Qe4 {[%emt 0:01:49] [#]} (32... Nb3 33. R1xb3) 33. Qf7 $1 {[%emt 0:01:18] Weighted Error Value: White=0.10 (very precise) /Black=0.40} 1-0